bitfinex/quotes_BTCUSD_20241223
["timestamp","ask_amount","ask_price","bid_price","bid_amount"]
[1734943812824,0.2276035,95463.0,95462.0,0.004]
[1734943813047,0.081,95461.0,95453.0,0.09402134]
[1734943813286,0.20952,95457.0,95453.0,0.09402134]
[1734943813541,0.209514,95459.0,95453.0,0.09402134]
[1734943813809,0.209522,95455.0,95452.0,0.0002831]
[1734943814003,0.3108224,95459.0,95452.0,0.0002831]
[1734943814393,0.3108224,95459.0,95454.0,0.0001712]
[1734943814603,0.082,95461.0,95454.0,0.0001712]
[1734943814820,0.081,95461.0,95454.0,0.0001712]
[1734943815018,0.00130948,95460.0,95454.0,0.0001712]
[1734943815229,0.001,95459.0,95454.0,0.0001712]
[1734943815647,0.00130948,95460.0,95454.0,0.0001712]
[1734943815997,0.21082148,95460.0,95454.0,0.0001712]
[1734943816228,0.0797,95455.0,95454.0,0.0001712]
[1734943816435,0.08100959,95455.0,95454.0,0.0001712]
[1734943817254,0.0797,95455.0,95454.0,0.0001712]
[1734943818823,0.0797,95455.0,95454.0,0.0021712]
[1734943819218,0.0797,95455.0,95454.0,0.0031712]
[1734943820050,0.0797,95455.0,95454.0,0.0001712]
[1734943820362,0.0797,95455.0,95454.0,0.0031712]
[1734943820577,0.0797,95455.0,95454.0,0.0041712]
[1734943821240,0.0797,95455.0,95454.0,0.0031712]
[1734943821671,0.0797,95455.0,95454.0,0.0001712]
[1734943821873,0.0797,95455.0,95454.0,0.0031712]
[1734943822265,0.0797,95455.0,95454.0,0.0001712]
[1734943822603,0.0797,95455.0,95454.0,0.0011712]
[1734943822784,0.0797,95455.0,95454.0,0.0001712]
[1734943823214,0.0797,95455.0,95454.0,0.0011712]
[1734943825072,0.0797,95455.0,95454.0,0.0021712]
[1734943825488,0.0797,95455.0,95454.0,0.0051712]
[1734943825652,0.0797,95455.0,95454.0,0.09919254]
[1734943825847,0.0797856,95455.0,95454.0,0.09919254]
[1734943827030,0.0797856,95455.0,95454.0,0.09819254]
[1734943827229,0.0797856,95455.0,95454.0,0.30771754]
[1734943827817,0.0797856,95455.0,95454.0,0.30371754]
[1734943828067,0.0797856,95455.0,95454.0,0.09519254]
[1734943828581,0.0797856,95455.0,95454.0,0.09619254]
[1734943828807,0.0797856,95455.0,95454.0,0.09919254]
[1734943829106,0.0797856,95455.0,95454.0,0.09519254]
[1734943829521,0.0797856,95455.0,95454.0,0.30471754]
[1734943829696,0.0797856,95455.0,95454.0,0.30571754]
[1734943829903,0.0797856,95455.0,95454.0,0.09619254]
[1734943830103,0.0797856,95455.0,95454.0,0.09519254]
[1734943831083,0.0797856,95455.0,95454.0,0.09419254]
[1734943831299,0.0797856,95455.0,95454.0,0.09519254]
[1734943832357,0.0797856,95455.0,95454.0,0.0011712]
[1734943834665,0.0797856,95455.0,95454.0,0.0001712]
[1734943835077,0.0807856,95455.0,95454.0,0.0001712]
[1734943836334,0.0797856,95455.0,95454.0,0.0001712]
[1734943836743,0.0807856,95455.0,95454.0,0.0001712]
[1734943849750,0.1818,95446.0,95445.0,0.14103202]
[1734943849931,0.61466714,95446.0,95445.0,0.03626202]
[1734943850154,0.2,95443.0,95442.0,0.18804269]
[1734943850371,0.2,95443.0,95442.0,0.16708769]
[1734943850372,0.61506726,95443.0,95442.0,0.16708769]
[1734943850576,0.61375731,95443.0,95442.0,0.16708769]
[1734943850981,0.61375731,95443.0,95442.0,0.05217769]
[1734943851193,0.61375731,95443.0,95396.0,0.01515899]
[1734943851194,0.689251,95442.0,95441.0,8e-07]
[1734943851420,0.82330831,95442.0,95441.0,8e-07]
[1734943852267,0.97744593,95442.0,95441.0,8e-07]
[1734943853128,0.7905594,95442.0,95441.0,8e-07]
[1734943853859,0.7955594,95442.0,95441.0,0.0010008]
[1734943855113,0.7905594,95442.0,95441.0,8e-07]
[1734943855323,0.7905594,95442.0,95441.0,0.0010008]
[1734943855516,0.7975594,95442.0,95441.0,0.0020008]
[1734943855965,0.15,95433.0,95396.0,0.01515899]
[1734943856300,0.209621,95411.0,95400.0,0.209641]
[1734943856954,0.083,95431.0,95400.0,0.10134698]
[1734943857132,0.210887,95430.0,95417.0,0.209604]
[1734943857433,0.209577,95430.0,95417.0,0.209604]
[1734943857591,0.20965526,95430.0,95418.0,0.0761]
[1734943857994,0.00130997,95429.0,95418.0,0.0761]
[1734943858194,0.00130997,95429.0,95411.0,0.0761]
[1734943858399,0.209595,95422.0,95411.0,0.0761]
[1734943858623,0.209595,95422.0,95411.0,0.285717]
[1734943859280,0.20959,95425.0,95411.0,0.495335]
[1734943859513,0.00130997,95424.0,95411.0,0.495335]
[1734943860110,0.00130997,95424.0,95403.0,0.209635]
[1734943860111,0.10261837,95424.0,95404.0,0.0752]
[1734943860312,0.10261837,95424.0,95409.0,0.209623]
[1734943860313,0.002,95422.0,95409.0,0.209623]
[1734943860643,0.00131009,95421.0,95412.0,0.209617]
[1734943861046,0.00131009,95421.0,95411.0,8.56e-05]
[1734943861219,0.209597,95421.0,95412.0,0.209617]
[1734943861421,0.003,95422.0,95412.0,0.209617]
[1734943861636,0.00081246,95421.0,95411.0,8.56e-05]
[1734943861830,0.21040946,95421.0,95411.0,8.56e-05]
[1734943862037,0.00081246,95421.0,95412.0,0.209617]
[1734943862235,0.003,95422.0,95411.0,8.56e-05]
[1734943862665,0.003,95422.0,95414.0,0.209612]
[1734943862908,0.00381246,95422.0,95414.0,0.209612]
[1734943863387,0.00081246,95421.0,95414.0,0.209612]
[1734943863715,0.00281246,95421.0,95414.0,0.209612]
[1734943864123,0.002,95421.0,95414.0,0.209612]
[1734943864549,0.004,95422.0,95414.0,0.209612]
[1734943864743,0.002,95422.0,95414.0,0.209612]
[1734943864944,0.002,95421.0,95414.0,0.209612]
[1734943865394,0.00281246,95421.0,95418.0,0.209603]
[1734943865604,0.002,95421.0,95415.0,0.209609]
[1734943865755,0.00281246,95421.0,95415.0,0.209609]
[1734943865955,0.00281246,95421.0,95412.0,0.209617]
[1734943866158,0.00481246,95421.0,95411.0,8.56e-05]
[1734943866359,0.004,95421.0,95420.0,0.0781]
[1734943866564,0.002,95421.0,95420.0,0.0781]
[1734943866819,0.258151,95442.0,95420.0,0.0781]
[1734943867017,0.002,95421.0,95420.0,0.332899]
[1734943867236,0.00081246,95436.0,95420.0,0.332899]
[1734943867409,0.20956,95438.0,95420.0,0.332899]
[1734943867612,0.00081246,95437.0,95426.0,0.209584]
[1734943868019,0.209571,95433.0,95421.0,0.209597]
[1734943868217,0.20956,95438.0,95422.0,0.209595]
[1734943868418,0.00081246,95437.0,95425.0,0.209588]
[1734943869111,0.00107826,95430.0,95425.0,0.209588]
[1734943869293,0.00107826,95430.0,95420.0,0.01473607]
[1734943869507,0.209579,95429.0,95418.0,0.209604]
[1734943870061,0.00081246,95428.0,95418.0,0.209604]
[1734943870648,0.209584,95427.0,95413.0,0.01414054]
[1734943870806,0.00081246,95426.0,95412.0,0.209615]
[1734943870985,0.00081246,95429.0,95412.0,0.209615]
[1734943871308,0.209584,95427.0,95416.0,0.209608]
[1734943871487,0.00081246,95426.0,95416.0,0.209608]
[1734943873799,0.00081246,95426.0,95416.0,0.210608]
[1734943875927,0.00081246,95426.0,95416.0,0.137608]
[1734943876127,0.00081246,95426.0,95416.0,0.001]
[1734943876757,0.00081246,95426.0,95416.0,0.210608]
[1734943876957,0.209588,95425.0,95416.0,0.001]
[1734943877487,0.10212086,95424.0,95416.0,0.001]
[1734943877689,0.209606,95417.0,95416.0,0.001]
[1734943878247,0.419213,95417.0,95414.0,8.56e-05]
[1734943878404,0.419213,95417.0,95416.0,0.001]
[1734943879365,0.5205214,95417.0,95416.0,0.001]
[1734943879711,0.5205214,95417.0,95414.0,8.56e-05]
[1734943879914,0.20961,95415.0,95414.0,8.56e-05]
[1734943880132,0.4414184,95415.0,95414.0,8.56e-05]
[1734943881360,0.4444184,95415.0,95414.0,8.56e-05]
[1734943881812,0.4464184,95415.0,95414.0,8.56e-05]
[1734943882389,0.3159184,95415.0,95414.0,8.56e-05]
[1734943886923,0.005,95415.0,95414.0,8.56e-05]
[1734943887657,0.003,95415.0,95414.0,8.56e-05]
[1734943887862,0.004,95415.0,95414.0,8.56e-05]
[1734943888076,0.001,95415.0,95414.0,8.56e-05]
[1734943888283,0.002,95415.0,95414.0,8.56e-05]
[1734943888492,0.001,95415.0,95414.0,8.56e-05]
[1734943888688,0.002,95415.0,95414.0,8.56e-05]
[1734943890925,0.002,95415.0,95411.0,0.01464581]
[1734943891125,0.002,95415.0,95408.0,0.290824]
[1734943891788,0.001,95415.0,95411.0,0.209617]
[1734943892099,0.0001712,95417.0,95411.0,0.209617]
[1734943892457,0.001,95415.0,95411.0,0.209617]
[1734943893232,0.002,95415.0,95411.0,0.209617]
[1734943893625,0.001,95415.0,95411.0,0.209617]
[1734943894051,0.002,95415.0,95411.0,0.209617]
[1734943894594,0.002,95415.0,95411.0,0.419236]
[1734943895172,0.002,95415.0,95411.0,0.209617]
[1734943895351,0.002,95415.0,95409.0,0.209623]
[1734943895555,0.002,95415.0,95409.0,0.419246]
[1734943896102,0.002,95415.0,95409.0,0.209623]
[1734943896308,0.002,95415.0,95413.0,0.209613]
[1734943896679,0.0011712,95415.0,95413.0,0.209613]
[1734943897085,0.0021712,95415.0,95413.0,0.209613]
[1734943897297,0.0011712,95415.0,95413.0,0.209613]
[1734943897500,0.0001712,95415.0,95413.0,0.209613]
[1734943897837,0.0011712,95415.0,95413.0,0.209613]
[1734943898233,0.0021712,95415.0,95413.0,0.209613]
[1734943898445,0.0001712,95415.0,95413.0,0.209613]
[1734943898793,0.0001712,95415.0,95413.0,0.212613]
[1734943900880,0.0001712,95415.0,95413.0,0.14361299]
[1734943901117,0.0001712,95415.0,95413.0,0.003]
[1734943901591,0.0001712,95415.0,95413.0,0.212613]
[1734943905939,0.0001712,95415.0,95413.0,0.139613]
[1734943906153,0.0001712,95415.0,95411.0,0.0070856]
[1734943906867,0.0001712,95415.0,95411.0,0.2167036]
[1734943907283,0.0001712,95415.0,95411.0,0.2197036]
[1734943909630,0.0001712,95415.0,95411.0,0.0100856]
[1734943910230,0.0001712,95415.0,95412.0,0.209617]
[1734943911549,0.0001712,95415.0,95412.0,0.210617]
[1734943914907,0.0001712,95415.0,95412.0,0.001]
[1734943916115,0.0001712,95415.0,95408.0,0.01421833]
[1734943916472,0.0001712,95415.0,95406.0,0.001048]
[1734943916473,0.0001712,95415.0,95406.0,0.024048]
[1734943916672,0.0001712,95415.0,95409.0,0.209622]
[1734943917466,0.0001712,95415.0,95412.0,0.419231]
[1734943917699,0.0001712,95415.0,95412.0,0.209615]
[1734943919735,0.209612,95414.0,95405.0,0.01380849]
[1734943919994,0.209618,95412.0,95405.0,0.01380849]
[1734943920264,0.0792,95414.0,95395.0,0.350257]
[1734943920508,0.3109234,95413.0,95412.0,0.002]
[1734943920755,0.1778084,95413.0,95395.0,0.140605]
[1734943921002,0.286143,95400.0,95395.0,0.140605]
[1734943921257,0.209651,95397.0,95393.0,0.01345112]
[1734943921719,0.209651,95397.0,95386.0,0.209673]
[1734943922407,0.209651,95397.0,95386.0,0.21020762]
[1734943922655,0.209651,95397.0,95386.0,0.41988162]
[1734943922656,0.001,95397.0,95386.0,0.41988162]
[1734943923145,0.00081246,95399.0,95386.0,0.41988162]
[1734943923397,0.209648,95398.0,95386.0,0.41988162]
[1734943923867,0.001,95397.0,95386.0,0.41988162]
[1734943924116,0.003,95397.0,95386.0,0.41988162]
[1734943924650,0.003,95397.0,95389.0,0.209666]
[1734943924867,0.001,95397.0,95389.0,0.209666]
[1734943925141,0.003,95397.0,95387.0,0.10134698]
[1734943925417,0.002,95397.0,95396.0,0.173]
[1734943925684,0.002,95397.0,95396.0,0.35515641]
[1734943925958,0.002,95397.0,95396.0,0.3541084]
[1734943926212,0.002,95397.0,95396.0,0.44784034]
[1734943926729,0.0001712,95415.0,95398.0,0.173]
[1734943926978,0.0001712,95415.0,95410.0,0.209621]
[1734943927250,0.0001712,95415.0,95413.0,0.209613]
[1734943929694,0.0001712,95415.0,95413.0,0.210613]
[1734943929915,0.0001712,95415.0,95413.0,0.212613]
[1734943930354,0.0001712,95415.0,95413.0,0.2258047]
[1734943931131,0.0001712,95415.0,95413.0,0.0161917]
[1734943931305,0.0001712,95415.0,95414.0,0.0754]
[1734943931506,0.0001712,95415.0,95414.0,0.07644801]
[1734943932480,0.0001712,95415.0,95414.0,0.07744801]
[1734943932681,0.0001712,95415.0,95414.0,0.001]
[1734943933294,0.0001712,95415.0,95414.0,0.00404802]
[1734943934345,0.0001712,95415.0,95414.0,0.003]
[1734943938095,0.0001712,95415.0,95414.0,0.0807]
[1734943938734,0.0001712,95415.0,95414.0,0.08174797]
[1734943938947,0.0001712,95415.0,95414.0,0.25455637]
[1734943939156,0.0001712,95415.0,95414.0,0.2535084]
[1734943939567,0.0001712,95415.0,95414.0,0.4035084]
[1734943939991,0.0001712,95415.0,95414.0,0.4015084]
[1734943940404,0.0001712,95415.0,95414.0,0.4045084]
[1734943940613,0.0001712,95415.0,95414.0,0.4035084]
[1734943941659,0.0001712,95415.0,95414.0,0.4045084]
[1734943942094,0.0001712,95415.0,95414.0,0.4035084]
[1734943942297,0.0001712,95415.0,95414.0,0.4045084]
[1734943945163,0.0001712,95415.0,95414.0,0.59185284]
[1734943946957,0.0001712,95415.0,95414.0,0.4045084]
[1734943948266,0.0001712,95415.0,95414.0,0.177]
[1734943948672,0.0001712,95415.0,95414.0,0.17804793]
[1734943948873,0.0001712,95415.0,95414.0,0.02804793]
[1734943949080,0.0001712,95415.0,95414.0,0.02404793]
[1734943949392,0.0041712,95415.0,95414.0,0.02404793]
[1734943950030,0.0051712,95415.0,95414.0,0.03204793]
[1734943950609,0.0031712,95415.0,95414.0,0.03204793]
[1734943950808,0.0031712,95415.0,95414.0,0.03504793]
[1734943951436,0.0031712,95415.0,95414.0,0.28635633]
[1734943951652,0.0031712,95415.0,95414.0,0.2853084]
[1734943952656,0.0031712,95415.0,95414.0,0.42581395]
[1734943958024,0.0031712,95415.0,95414.0,0.32450555]
[1734943958191,0.0031712,95415.0,95414.0,0.011]
[1734943961076,0.0031712,95415.0,95414.0,0.008]
[1734943961652,0.0001712,95415.0,95413.0,0.0132773]
[1734943961879,0.0001712,95415.0,95414.0,0.001]
[1734943962287,0.0001712,95415.0,95413.0,0.2228903]
[1734943962486,0.0001712,95415.0,95414.0,0.001]
[1734943963172,0.009,95414.0,95413.0,0.2228903]
[1734943963375,0.009,95414.0,95413.0,0.0132773]
[1734943964820,0.009,95414.0,95413.0,0.0142773]
[1734943974911,0.009,95414.0,95413.0,0.1385857]
[1734943977906,0.009,95414.0,95413.0,0.27943327]
[1734943978655,0.341612,95414.0,95413.0,0.14193317]
[1734943978859,0.132,95414.0,95413.0,0.0010856]
[1734943979868,0.132,95414.0,95413.0,8.56e-05]
[1734943980077,0.0855,95414.0,95413.0,8.56e-05]
[1734943980307,0.0855,95414.0,95413.0,0.0010856]
[1734943980881,0.0856712,95414.0,95413.0,0.0010856]
[1734943981288,0.0856712,95414.0,95413.0,8.56e-05]
[1734943981694,0.0091712,95414.0,95413.0,8.56e-05]
[1734943982916,0.0091712,95414.0,95413.0,0.0040856]
[1734943983321,0.0091712,95414.0,95413.0,0.0010856]
[1734943983603,0.0091712,95414.0,95413.0,8.56e-05]
[1734943983847,0.0091712,95414.0,95413.0,0.0010856]
[1734943984229,0.0091712,95414.0,95413.0,0.09501251]
[1734943984741,0.0091712,95414.0,95413.0,0.09801251]
[1734943985077,0.0091712,95414.0,95413.0,0.0040856]
[1734943989761,0.0894712,95414.0,95413.0,0.0040856]
[1734943990287,0.00901265,95414.0,95413.0,0.0040856]
[1734943990487,0.00901265,95414.0,95413.0,0.0030856]
[1734943990745,0.00901265,95414.0,95413.0,0.0040856]
[1734943991924,0.00901265,95414.0,95413.0,0.0010856]
[1734943992135,0.00901265,95414.0,95413.0,0.0030856]
[1734943992339,0.00901265,95414.0,95413.0,0.0020856]
[1734943992543,0.00901265,95414.0,95413.0,0.0010856]
[1734943992720,0.00901265,95414.0,95413.0,0.0030856]
[1734943997134,0.00901265,95414.0,95413.0,0.09713356]
[1734943998900,0.00901265,95414.0,95413.0,0.0030856]
[1734943999821,0.00901265,95414.0,95413.0,0.09713356]
[1734944000030,0.05851265,95414.0,95413.0,0.09713356]
[1734944000448,0.05851265,95414.0,95413.0,0.0030856]
[1734944000655,0.05851265,95414.0,95413.0,0.0020856]
[1734944001905,0.05851265,95414.0,95413.0,8.56e-05]
[1734944003359,0.23653351,95414.0,95413.0,8.56e-05]
[1734944003565,0.23672105,95414.0,95413.0,8.56e-05]
[1734944006909,0.24272105,95414.0,95413.0,0.0010856]
[1734944007089,0.24172105,95414.0,95413.0,0.0010856]
[1734944007310,0.24472105,95414.0,95413.0,0.0010856]
[1734944019081,0.24472105,95414.0,95394.0,0.01211394]
[1734944019082,0.24472105,95414.0,95394.0,0.00989762]
[1734944019283,0.209648,95398.0,95390.0,0.09404796]
[1734944020432,0.209641,95401.0,95389.0,0.30371396]
[1734944020679,0.209645,95399.0,95390.0,0.001]
[1734944022029,0.209645,95399.0,95389.0,0.40506094]
[1734944022197,0.209645,95399.0,95389.0,0.41660919]
[1734944022818,0.209645,95399.0,95390.0,0.001]
[1734944023220,0.209645,95399.0,95389.0,0.41660919]
[1734944023360,0.210645,95399.0,95389.0,0.41660919]
[1734944023778,0.210645,95399.0,95389.0,0.32256123]
[1734944023974,0.001,95399.0,95390.0,0.209665]
[1734944024232,0.001,95399.0,95393.0,0.209657]
[1734944024592,0.002,95399.0,95393.0,0.209657]
[1734944025529,0.001,95399.0,95393.0,0.209657]
[1734944025813,0.002,95399.0,95393.0,0.209657]
[1734944027493,0.002,95399.0,95391.0,0.209663]
[1734944028392,0.001,95399.0,95391.0,0.209663]
[1734944028601,0.00081246,95401.0,95389.0,0.20702879]
[1734944028798,0.002,95399.0,95390.0,0.209665]
[1734944028993,0.00281246,95399.0,95390.0,0.209665]
[1734944029652,0.00181246,95399.0,95390.0,0.209665]
[1734944029854,0.00181246,95399.0,95389.0,0.11298083]
[1734944029855,0.209648,95398.0,95389.0,0.11298083]
[1734944030056,0.209648,95398.0,95389.0,0.01163385]
[1734944030211,0.002,95399.0,95389.0,0.01163385]
[1734944030415,0.00281246,95399.0,95390.0,0.209665]
[1734944030635,0.00181246,95399.0,95390.0,0.209665]
[1734944030847,0.001,95399.0,95390.0,0.209665]
[1734944031453,0.00181246,95401.0,95390.0,0.209665]
[1734944031727,0.001,95398.0,95390.0,0.209665]
[1734944032390,0.001,95399.0,95389.0,0.01163385]
[1734944032673,0.002,95399.0,95391.0,0.209663]
[1734944033209,0.001,95399.0,95394.0,0.209655]
[1734944033475,0.001,95398.0,95391.0,0.209663]
[1734944034108,0.002,95398.0,95391.0,0.209663]
[1734944034542,0.001,95398.0,95391.0,0.209663]
[1734944034733,0.00081246,95401.0,95391.0,0.209663]
[1734944034935,0.001,95398.0,95391.0,0.209663]
[1734944035095,0.001,95398.0,95391.0,0.30371096]
[1734944035493,0.001,95398.0,95391.0,0.09404796]
[1734944035662,0.001,95398.0,95395.0,0.209654]
[1734944036276,0.001,95398.0,95391.0,0.09404796]
[1734944036471,0.209639,95402.0,95391.0,0.09404796]
[1734944036725,0.001,95398.0,95391.0,0.09404796]
[1734944036924,0.001,95398.0,95389.0,0.15248142]
[1734944036925,0.077,95397.0,95392.0,0.09404796]
[1734944037794,0.077,95397.0,95391.0,0.09404796]
[1734944037977,0.077,95397.0,95392.0,0.209661]
[1734944038177,0.001,95398.0,95391.0,0.09404796]
[1734944038385,0.001,95398.0,95392.0,8.56e-05]
[1734944038553,0.002,95398.0,95392.0,8.56e-05]
[1734944038934,0.00098366,95399.0,95392.0,0.09413356]
[1734944039462,0.00098366,95399.0,95392.0,0.30379256]
[1734944039463,0.0001712,95399.0,95392.0,0.30379256]
[1734944040023,0.001,95398.0,95392.0,0.30379256]
[1734944040207,0.001,95398.0,95392.0,0.09413356]
[1734944040757,0.001,95398.0,95393.0,0.09404796]
[1734944041225,0.20965,95397.0,95393.0,0.09404796]
[1734944041374,0.2098182,95399.0,95393.0,0.09404796]
[1734944041577,0.2098182,95399.0,95392.0,8.56e-05]
[1734944041578,0.20965,95397.0,95392.0,0.09413356]
[1734944041782,0.0001712,95399.0,95392.0,0.09413356]
[1734944041983,0.001,95398.0,95392.0,0.09413356]
[1734944042623,0.20965,95397.0,95392.0,0.09413356]
[1734944042821,0.2098182,95399.0,95392.0,0.09413356]
[1734944043080,0.20965,95397.0,95392.0,0.09413356]
[1734944043415,0.2108182,95399.0,95392.0,0.09413356]
[1734944043613,0.00081246,95398.0,95392.0,8.56e-05]
[1734944044731,0.00181246,95398.0,95392.0,8.56e-05]
[1734944044932,0.20965,95397.0,95392.0,8.56e-05]
[1734944045156,0.001,95398.0,95392.0,8.56e-05]
[1734944045719,0.209652,95396.0,95392.0,8.56e-05]
[1734944045963,0.1771,95393.0,95389.0,0.02121916]
[1734944046174,0.286765,95390.0,95389.0,0.02121916]
[1734944046387,0.5977394,95390.0,95387.0,0.18734444]
[1734944046588,0.286769,95388.0,95387.0,0.18734444]
[1734944046796,0.3880774,95388.0,95387.0,0.18734444]
[1734944047198,0.3880774,95388.0,95387.0,0.18672201]
[1734944047405,0.3880774,95388.0,95386.0,0.00053462]
[1734944047653,0.10212086,95387.0,95386.0,0.00053462]
[1734944048620,0.22372086,95387.0,95386.0,0.00053462]
[1734944048774,0.2249084,95387.0,95386.0,0.00053462]
[1734944048987,0.2279084,95387.0,95386.0,0.00053462]
[1734944051212,0.2279084,95387.0,95357.0,0.2099072]
[1734944051360,0.209707,95371.0,95360.0,0.209729]
[1734944051563,0.209707,95371.0,95358.0,0.00033146]
[1734944051564,0.209711,95369.0,95358.0,0.00033146]
[1734944051764,0.20972,95365.0,95358.0,0.00033146]
[1734944052143,0.209711,95369.0,95358.0,0.00033146]
[1734944052377,0.209716,95367.0,95358.0,0.00033146]
[1734944053675,0.20972,95365.0,95358.0,0.00033146]
[1734944053806,0.209711,95369.0,95358.0,0.00033146]
[1734944054003,0.00081246,95368.0,95358.0,0.00033146]
[1734944055270,0.00181246,95368.0,95358.0,0.00033146]
[1734944055441,0.00381246,95368.0,95358.0,0.00033146]
[1734944055828,0.209716,95367.0,95358.0,0.00033146]
[1734944057473,0.21053046,95366.0,95358.0,0.00033146]
[1734944057891,0.0783,95361.0,95358.0,0.00033146]
[1734944058096,0.21054346,95360.0,95358.0,0.00033146]
[1734944059685,0.21154346,95360.0,95358.0,0.00033146]
[1734944060770,0.21354346,95360.0,95358.0,0.00033146]
[1734944065966,0.003,95360.0,95359.0,0.129]
[1734944066185,0.003,95360.0,95359.0,0.25435693]
[1734944066388,0.003,95360.0,95359.0,0.2533084]
[1734944066933,0.001,95360.0,95359.0,0.2533084]
[1734944067313,0.0001712,95367.0,95366.0,0.209718]
[1734944070228,0.0001712,95367.0,95366.0,0.210718]
[1734944070754,0.0001712,95367.0,95366.0,0.213718]
[1734944075727,0.0001712,95367.0,95366.0,0.23419258]
[1734944078006,0.0001712,95367.0,95366.0,0.23319258]
[1734944078392,0.0001712,95367.0,95366.0,0.23119258]
[1734944080027,0.0001712,95367.0,95366.0,0.23619258]
[1734944080230,0.0001712,95367.0,95366.0,0.23519258]
[1734944080583,0.0001712,95367.0,95366.0,0.23719258]
[1734944097908,0.0001712,95367.0,95366.0,0.56670098]
[1734944099634,0.0001712,95367.0,95366.0,0.55970098]
[1734944099814,0.0011712,95367.0,95366.0,0.57070098]
[1734944100219,0.0001712,95367.0,95366.0,0.56270098]
[1734944100418,0.0001712,95367.0,95366.0,0.85370692]
[1734944100629,0.0011712,95367.0,95366.0,0.85070692]
[1734944101040,0.0021712,95367.0,95366.0,0.85570692]
[1734944101480,0.0021712,95367.0,95366.0,0.57370098]
[1734944101703,2e-07,95367.0,95366.0,0.64550098]
[1734944103181,2e-07,95367.0,95366.0,0.74550098]
[1734944108385,2e-07,95367.0,95366.0,0.74558658]
[1734944108748,0.0001714,95367.0,95366.0,0.74558658]
[1734944108981,4e-07,95367.0,95366.0,0.74558658]
[1734944114477,4e-07,95367.0,95366.0,0.74436058]
[1734944115240,0.0826712,95398.0,95397.0,0.20965]
[1734944115448,0.0001712,95398.0,95397.0,0.20965]
[1734944115856,0.0001712,95398.0,95397.0,0.3109584]
[1734944116065,0.0001712,95398.0,95397.0,0.4609584]
[1734944116526,0.0001712,95398.0,95397.0,0.46111866]
[1734944116731,0.0001712,95398.0,95397.0,0.46311866]
[1734944117352,0.0001712,95398.0,95397.0,0.46511866]
[1734944117555,0.0001712,95398.0,95397.0,0.48638663]
[1734944117761,0.0001712,95398.0,95397.0,0.48238663]
[1734944118242,0.0011712,95398.0,95397.0,0.49138663]
[1734944118998,0.0011712,95398.0,95397.0,0.69244953]
[1734944119196,0.0808712,95398.0,95397.0,0.59114113]
[1734944119404,0.0808712,95398.0,95397.0,0.58914113]
[1734944119697,0.0798712,95398.0,95397.0,0.58514113]
[1734944119903,0.0798712,95398.0,95397.0,0.59214113]
[1734944120102,0.0798712,95398.0,95397.0,0.40440318]
[1734944120305,0.0798712,95398.0,95397.0,0.39740318]
[1734944120517,0.0798712,95398.0,95397.0,0.40340318]
[1734944120940,0.0798712,95398.0,95397.0,0.39440318]
[1734944121136,0.0001712,95398.0,95397.0,0.39940318]
[1734944121339,0.0001712,95398.0,95397.0,0.40140318]
[1734944121948,0.02287985,95404.0,95397.0,0.40140318]
[1734944122158,0.02287985,95404.0,95403.0,0.209637]
[1734944124112,0.02287985,95404.0,95403.0,0.212637]
[1734944127106,0.02287985,95404.0,95403.0,0.209637]
[1734944132448,0.02305105,95404.0,95403.0,0.209637]
[1734944140799,0.0001712,95404.0,95403.0,0.209637]
[1734944142872,0.0001712,95404.0,95403.0,0.4609454]
[1734944144270,0.0001712,95404.0,95403.0,0.4619454]
[1734944144471,0.0001712,95404.0,95403.0,0.4609454]
[1734944144988,0.0001712,95404.0,95403.0,0.4619454]
[1734944145193,0.0001712,95404.0,95403.0,0.4609454]
[1734944145368,0.0001712,95404.0,95403.0,0.4629454]
[1734944145573,0.0001712,95404.0,95403.0,0.5408454]
[1734944145743,0.0001712,95404.0,95403.0,0.5418454]
[1734944146141,0.0001712,95404.0,95403.0,0.5408454]
[1734944146569,0.0001712,95404.0,95403.0,0.5428454]
[1734944146871,0.0001712,95404.0,95403.0,0.5408454]
[1734944147042,0.0001712,95404.0,95403.0,0.5448454]
[1734944148941,0.0041712,95404.0,95403.0,0.7135454]
[1734944149150,0.0001712,95414.0,95403.0,0.7135454]
[1734944149543,0.0001712,95414.0,95413.0,0.607015]
[1734944149747,0.0001712,95414.0,95413.0,0.7083234]
[1734944149951,0.0001712,95414.0,95413.0,0.6083234]
[1734944150157,0.0001712,95414.0,95413.0,0.7083234]
[1734944151601,0.0001712,95414.0,95413.0,0.7143234]
[1734944152224,2e-07,95414.0,95413.0,0.7173234]
[1734944152513,2e-07,95414.0,95413.0,0.72763683]
[1734944152717,4e-07,95415.0,95414.0,0.273]
[1734944152896,4e-07,95415.0,95414.0,0.4530084]
[1734944154972,4e-07,95415.0,95414.0,0.73448503]
[1734944155593,0.0020004,95415.0,95414.0,0.73448503]
[1734944155915,0.0020004,95415.0,95414.0,0.47369543]
[1734944157392,6e-07,95417.0,95415.0,0.30961]
[1734944157761,6e-07,95417.0,95416.0,0.2753561]
[1734944157909,6e-07,95417.0,95416.0,0.2743084]
[1734944158107,6e-07,95417.0,95416.0,0.7983284]
[1734944158530,0.0030006,95417.0,95416.0,0.7983284]
[1734944158936,0.0001712,95428.0,95424.0,0.173]
[1734944159135,0.0001712,95428.0,95426.0,0.173]
[1734944159343,0.0001712,95428.0,95427.0,0.26535605]
[1734944159539,0.0001712,95428.0,95427.0,0.7882684]
[1734944160312,0.0817856,95455.0,95431.0,0.023]
[1734944160709,0.0817856,95455.0,95451.0,0.359531]
[1734944160710,0.00053409,95452.0,95451.0,0.359531]
[1734944162172,0.00053409,95452.0,95451.0,0.883361]
[1734944162374,0.00053409,95452.0,95451.0,0.90458]
[1734944163093,0.00053409,95452.0,95451.0,0.90758]
[1734944164150,0.00053409,95452.0,95451.0,1.0138884]
[1734944166381,0.00053409,95452.0,95451.0,1.02717813]
[1734944166782,0.00053409,95452.0,95451.0,0.92586973]
[1734944167706,0.00070529,95452.0,95451.0,0.92586973]
[1734944173159,0.23351369,95452.0,95451.0,0.52883]
[1734944173897,0.23351369,95452.0,95451.0,0.52383]
[1734944174318,0.23351369,95452.0,95451.0,0.52583]
[1734944174460,0.23351369,95452.0,95451.0,0.52483]
[1734944175069,0.23351369,95452.0,95451.0,0.52383]
[1734944175567,0.23451369,95452.0,95451.0,0.52383]
[1734944175941,0.23451369,95452.0,95451.0,0.45083]
[1734944176391,0.23451369,95452.0,95451.0,0.43083]